bitfinex-derivatives/quotes_SOLF0:USTF0_20260126
["timestamp","ask_amount","ask_price","bid_price","bid_amount"]
[1769429028519,3.30515259,122.89,122.85,3.38082354]
[1769429040740,10.63645259,122.89,122.85,3.38082354]
[1769429041142,7.3321,122.88,122.83,3.50654813]
[1769429044436,10.63765259,122.87,122.83,3.50654813]
[1769429044638,12.37137963,122.87,122.83,3.50654813]
[1769429045441,12.37137963,122.87,122.81,10.84254813]
[1769429045748,12.37197963,122.86,122.81,10.84254813]
[1769429046741,3.30515259,122.85,122.81,3.50654813]
[1769429046946,10.63875259,122.85,122.79,10.84324813]
[1769429047239,12.37247963,122.85,122.79,10.84324813]
[1769429047434,12.37247963,122.85,122.8,3.50654813]
[1769429048044,7.3343,122.84,122.8,3.50654813]
[1769429048246,10.63945259,122.84,122.8,3.50654813]
[1769429054953,3.30515259,122.83,122.78,10.84434813]
[1769429055550,10.64035259,122.83,122.78,3.50654813]
[1769429055750,12.37477381,122.83,122.78,3.50654813]
[1769429056248,3.30515259,122.82,122.78,3.50654813]
[1769429057347,10.64085259,122.82,122.78,3.50654813]
[1769429057553,3.30515259,122.82,122.78,3.50654813]
[1769429062254,3.30515259,122.82,122.77,237.42575372]
[1769429062456,3.30515259,122.82,122.77,240.92423844]
[1769429067758,3.30515259,122.82,122.77,242.65865966]
[1769429070161,10.64065259,122.82,122.77,242.65865966]
[1769429070351,10.64065259,122.82,122.77,240.92423844]
[1769429071262,10.64065259,122.82,122.77,3.49848472]
[1769429076170,10.64065259,122.82,122.77,5.23290594]
[1769429078970,10.64065259,122.82,122.77,3.49848472]
[1769429079177,10.64065259,122.82,122.77,5.23290594]
[1769429081177,10.64065259,122.82,122.77,3.49848472]
[1769429087479,10.86441353,122.81,122.77,3.49848472]
[1769429087684,10.86441353,122.81,122.76,12.57190594]
[1769429092789,10.86441353,122.81,122.76,5.23290594]
[1769429092790,7.3366,122.8,122.76,5.23290594]
[1769429092988,3.52821353,122.81,122.76,5.23290594]
[1769429093389,3.52821353,122.81,122.76,3.49848472]
[1769429094992,3.52821353,122.81,122.76,10.83738472]
[1769429096490,3.52821353,122.81,122.76,12.57180594]
[1769429100498,3.52821353,122.81,122.76,10.83738472]
[1769429101797,3.52821353,122.81,122.77,7.3384]
[1769429112702,3.28513013,122.83,122.77,10.79306269]
[1769429112900,3.28513013,122.83,122.78,7.3378]
[1769429113202,3.28513013,122.83,122.78,10.79246269]
[1769429115397,9.06912122,122.84,122.79,3.45466269]
[1769429115597,9.06930047,122.84,122.79,3.45466269]
[1769429116800,7.3347,122.84,122.79,3.45466269]
[1769429117105,10.61883013,122.85,122.8,3.45466269]
[1769429117303,274.9197306,122.87,122.8,3.45466269]
[1769429117696,3.28513013,122.87,122.82,3.350547]
[1769429118601,5.0197306,122.87,122.82,3.350547]
[1769429118905,5.0197306,122.87,122.82,10.685947]
[1769429119104,270.32,122.89,122.78,129.44073934]
[1769429119105,3.36676378,122.85,122.8,3.38116775]
[1769429119305,5.10136425,122.85,122.8,3.38116775]
[1769429120910,5.10136425,122.85,122.8,10.71766775]
[1769429121110,3.36676378,122.85,122.8,10.71766775]
[1769429124909,10.69996378,122.86,122.81,3.38116775]
[1769429130914,12.43456425,122.86,122.81,3.38116775]
[1769429131114,3.36676378,122.85,122.8,7.3365]
[1769429131316,3.36676378,122.85,122.8,10.71766775]
[1769429135718,3.36676378,122.85,122.81,3.38116775]
[1769429136620,3.36676378,122.85,122.81,10.71716775]
[1769429139124,3.36676378,122.85,122.81,7.336]
[1769429140224,3.36676378,122.85,122.81,10.71716775]
[1769429141522,3.36676378,122.85,122.79,1.73460047]
[1769429141728,3.36676378,122.84,122.79,10.71786775]
[1769429142026,3.36676378,122.84,122.79,7.3367]
[1769429142233,10.70116378,122.84,122.77,10.71896775]
[1769429142423,3.36676378,122.83,122.77,3.38116775]
[1769429143525,3.36676378,122.83,122.78,10.71846775]
[1769429161637,9.06900047,122.84,122.78,10.71846775]
[1769429161638,7.3344,122.84,122.79,3.35775081]
[1769429163035,10.86976587,122.84,122.79,3.35775081]
[1769429163536,3.53536587,122.86,122.8,3.35775081]
[1769429163741,399.0289,122.89,122.8,3.35775081]
[1769429163742,3.53536587,122.85,122.8,3.35775081]
[1769429168745,1.73460047,122.82,122.76,3.35775081]
[1769429168940,3.53536587,122.81,122.76,3.35775081]
[1769429169943,10.87136587,122.81,122.76,3.35775081]
[1769429170845,3.53536587,122.8,122.76,3.35775081]
[1769429171143,3.53536587,122.8,122.74,3.35775081]
[1769429171945,3.53536587,122.8,122.74,10.69775081]
[1769429172143,5.26996634,122.8,122.74,10.69775081]
[1769429172339,3.53536587,122.79,122.74,10.69775081]
[1769429172943,3.53536587,122.79,122.74,3.35775081]
[1769429173348,3.53536587,122.79,122.72,9.07540047]
[1769429173349,3.53536587,122.78,122.72,10.69855081]
[1769429174751,3.53536587,122.78,122.73,3.35775081]
[1769429176352,3.53536587,122.78,122.73,10.69845081]
[1769429178054,3.53536587,122.78,122.73,3.35775081]
[1769429181156,3.53536587,122.78,122.73,10.69855081]
[1769429181355,12.52992965,122.8,122.74,3.44480614]
[1769429181556,3.45729102,122.8,122.75,3.44480614]
[1769429181852,264.95332965,122.82,122.76,3.44480614]
[1769429182052,3.45729102,122.81,122.76,3.44480614]
[1769429183059,10.79359102,122.81,122.76,3.44480614]
[1769429184760,3.45729102,122.79,122.74,3.44480614]
[1769429185557,3.45729102,122.78,122.72,5.18084477]
[1769429185755,3.45729102,122.77,122.72,3.44480614]
[1769429188261,3.45729102,122.77,122.72,5.18084477]
[1769429188864,3.45729102,122.77,122.72,3.44480614]
[1769429190359,3.45729102,122.74,122.69,7.3432]
[1769429190565,266.65729102,122.76,122.7,3.44480614]
[1769429190858,266.65729102,122.76,122.7,5.18084477]
[1769429191262,273.99639102,122.76,122.71,5.18084477]
[1769429191860,273.99639102,122.76,122.71,3.44480614]
[1769429192260,266.65729102,122.76,122.72,1.73603863]
[1769429192660,263.2,122.76,122.72,1.73603863]
[1769429192967,263.2,122.76,122.72,5.18084477]
[1769429193558,3.45729102,122.74,122.68,3.44480614]
[1769429193759,3.45729102,122.74,122.68,5.18084477]
[1769429194965,3.45729102,122.74,122.68,12.52454477]
[1769429196668,3.45729102,122.73,122.66,5.18084477]
[1769429197769,3.45729102,122.72,122.67,7.3444]
[1769429198167,3.45729102,122.72,122.67,9.08043863]
[1769429198368,3.45729102,122.72,122.67,12.52524477]
[1769429198665,3.45729102,122.74,122.67,12.52524477]
[1769429198866,3.45729102,122.73,122.67,12.52524477]
[1769429199068,3.45729102,122.73,122.67,5.18084477]
[1769429199266,3.45729102,122.73,122.67,3.44480614]
[1769429199869,10.79809102,122.73,122.67,3.44480614]
[1769429200171,10.79809102,122.73,122.67,5.18084477]
[1769429200471,3.45729102,122.73,122.68,1.73603863]
[1769429200671,3.45729102,122.75,122.69,1.73603863]
[1769429200877,3.45729102,122.75,122.67,3.44480614]
[1769429201065,3.45729102,122.74,122.68,1.73603863]
[1769429201265,3.45729102,122.74,122.67,5.18084477]
[1769429201469,270.91729102,122.74,122.67,5.18084477]
[1769429201973,270.91729102,122.74,122.68,7.3438]
[1769429203166,3.45729102,122.73,122.68,7.3438]
[1769429204569,3.45729102,122.73,122.67,3.44480614]
[1769429204767,5.19332965,122.73,122.67,3.44480614]
[1769429205071,3.45729102,122.71,122.65,5.18084477]
[1769429205472,10.79949102,122.71,122.65,5.18084477]
[1769429206269,7.3415,122.72,122.67,3.44480614]
[1769429206568,270.04,122.72,122.67,5.18084477]
[1769429207869,270.04,122.72,122.68,12.52444477]
[1769429210373,270.04,122.72,122.68,10.78840614]
[1769429211572,270.04,122.72,122.69,7.3431]
[1769429211777,285.02659018,122.75,122.69,5.09644274]
[1769429211973,3.40689018,122.75,122.69,5.09644274]
[1769429212172,277.84689018,122.75,122.69,5.09644274]
[1769429212678,277.84689018,122.75,122.7,1.73603863]
[1769429212870,277.84689018,122.75,122.7,9.07853863]
[1769429214775,277.84689018,122.75,122.7,5.09644274]
[1769429214982,274.44,122.75,122.71,9.07793863]
[1769429215675,277.84689018,122.75,122.71,9.07793863]
[1769429216172,277.84689018,122.75,122.71,7.3419]
[1769429217981,277.84689018,122.75,122.7,10.70300411]
[1769429218482,3.40689018,122.74,122.7,7.3426]
[1769429221586,3.40689018,122.73,122.7,7.3426]
[1769429222284,3.40689018,122.73,122.68,5.09644274]
[1769429223986,3.40689018,122.73,122.69,7.3426]
[1769429224283,3.40689018,122.73,122.68,5.09644274]
[1769429224486,3.40689018,122.73,122.7,7.3426]
[1769429224873,1.73603863,122.77,122.7,5.09644274]
[1769429225073,284.32,122.76,122.7,5.09644274]
[1769429225985,284.32,122.76,122.71,7.3418]
[1769429226986,3.40689018,122.75,122.71,7.3418]
[1769429231184,3.40689018,122.75,122.7,10.70300411]
[1769429233592,5.14292881,122.75,122.7,10.70300411]
[1769429234490,3.40689018,122.73,122.68,3.36040411]
[1769429234688,5.14292881,122.73,122.68,3.36040411]
[1769429234884,3.40689018,122.73,122.68,3.36040411]
[1769429235992,3.40689018,122.73,122.69,7.3431]
[1769429236193,9.07633863,122.74,122.69,10.70350411]
[1769429237096,12.48262881,122.75,122.69,10.70350411]
[1769429237699,12.48373829,122.75,122.69,10.70350411]
[1769429243002,5.11974808,122.74,122.69,10.70350411]
[1769429243297,284.32,122.76,122.67,3.51091716]
[1769429243298,1.73714811,122.72,122.67,3.51091716]
[1769429243496,5.11974808,122.72,122.67,3.51091716]
[1769429243903,5.11974808,122.72,122.64,284.38555198]
[1769429243904,3.38259997,122.71,122.65,3.51091716]
[1769429244303,3.38259997,122.71,122.66,7.3449]
[1769429244697,3.38259997,122.71,122.66,10.85581716]
[1769429245003,1.73714811,122.72,122.67,10.85521716]
[1769429248301,5.11974808,122.72,122.67,10.85521716]
[1769429249307,12.46114808,122.72,122.67,10.85521716]
[1769429250404,5.11974808,122.72,122.67,10.85521716]
[1769429252911,3.38259997,122.72,122.67,10.85521716]
[1769429253611,3.38259997,122.72,122.68,7.3437]
[1769429254312,12.45994808,122.74,122.69,10.85411716]
[1769429255701,5.11974808,122.74,122.69,10.85411716]
[1769429255906,3.38259997,122.74,122.69,10.85411716]
[1769429257911,287.2996,122.75,122.7,3.51091716]
[1769429258115,287.2996,122.75,122.7,10.85341716]
[1769429258116,279.96,122.75,122.7,10.85341716]
[1769429260417,114.1173,122.81,122.72,3.51091716]
[1769429260418,12.45814808,122.78,122.72,3.51091716]
[1769429260617,10.72099997,122.78,122.72,3.51091716]
[1769429262018,10.72099997,122.78,122.72,10.85201716]
[1769429262614,3.38259997,122.78,122.73,10.85161716]
[1769429274327,7.3373,122.79,122.74,3.3693024]
[1769429278126,10.86761886,122.79,122.74,3.3693024]
[1769429279525,12.60476697,122.79,122.74,3.3693024]
[1769429280124,3.53031886,122.78,122.73,7.3407]
[1769429280328,12.60536697,122.78,122.73,7.3407]
[1769429283032,10.86821886,122.78,122.73,7.3407]
[1769429283425,7.3379,122.78,122.74,3.3693024]
[1769429284127,10.86821886,122.78,122.73,7.3407]
[1769429284731,10.86821886,122.78,122.72,12.44775051]
[1769429285032,12.60536697,122.78,122.72,10.7106024]
[1769429285235,3.53031886,122.76,122.72,3.3693024]
[1769429285426,3.53031886,122.75,122.7,3.3693024]
[1769429285832,5.26746697,122.75,122.7,3.3693024]
[1769429286132,5.26746697,122.74,122.68,3.3693024]
[1769429286522,9.07804811,122.73,122.66,1.73714811]
[1769429286721,5.26746697,122.71,122.66,3.3693024]
[1769429287131,12.60946697,122.71,122.66,3.3693024]
[1769429287633,1.73714811,122.7,122.64,10.7155024]
[1769429287838,5.26746697,122.7,122.64,10.7155024]
[1769429288734,5.26746697,122.7,122.65,3.3693024]
[1769429289935,3.53031886,122.7,122.65,3.3693024]
[1769429290123,3.53031886,122.7,122.65,10.7149024]
[1769429290932,12.61026697,122.7,122.63,10.7155024]
[1769429291136,5.26746697,122.69,122.63,10.7155024]
[1769429291623,3.53031886,122.69,122.63,10.7155024]
[1769429292238,5.26746697,122.69,122.63,10.7155024]
[1769429292534,12.61066697,122.69,122.63,10.7155024]
[1769429294539,5.26746697,122.69,122.63,10.7155024]
[1769429294738,3.53031886,122.69,122.63,10.7155024]
[1769429296038,5.26746697,122.69,122.63,3.3693024]
[1769429296234,3.53031886,122.68,122.63,3.3693024]
[1769429297226,323.76746697,122.7,122.63,5.10645051]
[1769429297427,3.53031886,122.69,122.63,5.10645051]
[1769429297635,3.53031886,122.69,122.64,3.3693024]
[1769429297835,318.5,122.7,122.64,10.7152024]
[1769429298140,321.93182718,122.7,122.64,10.7152024]
[1769429299831,321.93182718,122.7,122.65,10.58094369]
[1769429300030,321.93182718,122.7,122.63,3.23534369]
[1769429300031,5.28753122,122.69,122.63,3.23534369]
[1769429300936,5.28753122,122.69,122.63,10.58154369]
[1769429302745,1.73831983,122.68,122.63,10.58154369]
[1769429303945,1.73831983,122.68,122.64,7.3461]
[1769429304146,5.28753122,122.69,122.64,7.3461]
[1769429306050,5.28753122,122.69,122.64,10.58144369]
[1769429306549,3.54921139,122.69,122.64,10.58144369]
[1769429308052,318.5,122.7,122.65,10.58094369]
[1769429308851,322.04921139,122.7,122.65,10.58094369]
[1769429309345,322.04921139,122.7,122.66,10.58034369]
[1769429309648,5.28753122,122.72,122.66,10.58034369]
[1769429309844,3.54921139,122.72,122.67,3.23534369]
[1769429310148,10.89091139,122.72,122.67,3.23534369]
[1769429311249,12.62923122,122.72,122.67,3.23534369]
[1769429313145,9.08001983,122.72,122.67,3.23534369]
[1769429313350,3.54921139,122.71,122.66,7.345]
[1769429314448,3.54921139,122.71,122.66,10.7850004]
[1769429314643,5.28753122,122.71,122.66,10.7850004]
[1769429315450,3.52520048,122.7,122.64,10.7856004]
[1769429315644,3.52520048,122.7,122.65,3.4400004]
[1769429316946,3.52520048,122.7,122.65,10.7854004]
[1769429318849,12.60502031,122.72,122.66,10.7848004]
[1769429319043,12.60502031,122.72,122.67,3.4400004]
[1769429319044,3.52520048,122.72,122.67,3.4400004]
[1769429319448,3.52520048,122.72,122.67,12.52272023]
[1769429319647,332.7809,122.73,122.68,3.4400004]
[1769429320050,336.30610048,122.73,122.68,3.4400004]
[1769429320445,338.04442031,122.73,122.68,3.4400004]
[1769429322651,3.52520048,122.72,122.67,7.3444]
[1769429322852,5.26352031,122.71,122.65,7.3451]
[1769429323354,1.73831983,122.7,122.65,10.7851004]
[1769429323948,5.26352031,122.7,122.65,10.7851004]
[1769429324149,5.26352031,122.7,122.65,3.4400004]
[1769429325455,1.73831983,122.69,122.65,3.4400004]
[1769429325654,1.73831983,122.69,122.64,7.3461]
[1769429327165,1.73831983,122.69,122.62,3.4400004]
[1769429327166,1.73831983,122.68,122.62,3.4400004]
[1769429327652,5.26352031,122.69,122.62,3.4400004]
[1769429328465,5.16525869,122.68,122.63,7.3468]
[1769429328663,5.16525869,122.68,122.62,3.4400004]
[1769429329153,1.73831983,122.66,122.62,3.4400004]
[1769429329758,5.16525869,122.67,122.62,3.4400004]
[1769429330848,5.16525869,122.66,122.6,3.47878603]
[1769429331251,3.42693886,122.66,122.6,3.47878603]
[1769429331955,3.42693886,122.66,122.61,3.47878603]
[1769429333959,336.21103886,122.68,122.61,10.82658603]
[1769429334259,1.73831983,122.67,122.61,10.82658603]
[1769429334453,337.94935869,122.68,122.61,10.82658603]
[1769429335259,10.77163886,122.67,122.61,3.47878603]
[1769429337460,12.50995869,122.67,122.61,3.47878603]
[1769429341063,12.50995869,122.67,122.6,9.08661983]
[1769429341064,3.42693886,122.67,122.62,10.82618603]
[1769429341860,3.42693886,122.67,122.62,12.56450586]
[1769429342057,3.42693886,122.69,122.64,3.47878603]
[1769429343661,3.42693886,122.69,122.64,10.82488603]
[1769429344564,332.8421,122.71,122.65,3.47878603]
[1769429344764,325.5,122.71,122.65,10.82418603]
[1769429344965,328.92693886,122.71,122.65,10.82418603]
[1769429345861,3.42693886,122.7,122.63,3.47878603]
[1769429346064,5.16525869,122.69,122.63,10.82508603]
[1769429346259,3.42693886,122.69,122.63,10.82508603]
[1769429347566,3.42693886,122.69,122.64,7.3461]
[1769429347961,3.42693886,122.69,122.64,10.82488603]
[1769429353870,3.42693886,122.69,122.64,12.56320586]
[1769429359574,3.42693886,122.69,122.64,10.82488603]
[1769429359775,10.77013886,122.69,122.64,10.82488603]
[1769429360176,3.42693886,122.69,122.64,10.82488603]
[1769429364884,3.35913531,122.67,122.63,3.57334136]
[1769429367288,3.35913531,122.67,122.61,12.65912059]
[1769429367986,3.35913531,122.67,122.62,3.57334136]
[1769429368291,3.35913531,122.67,122.62,10.92074136]
[1769429373395,3.35913531,122.66,122.62,10.92074136]
[1769429373697,3.35913531,122.66,122.62,3.57334136]
[1769429380999,7.3438,122.69,122.64,5.31172059]
[1769429382000,10.70183531,122.7,122.64,12.65772059]
[1769429383097,3.35913531,122.7,122.65,12.65712059]
[1769429383702,3.35913531,122.7,122.64,3.57334136]
[1769429384201,10.70223531,122.7,122.64,3.57334136]
[1769429384396,12.44061454,122.7,122.64,3.57334136]
[1769429384998,3.35913531,122.69,122.64,3.57334136]
[1769429385395,3.35913531,122.68,122.62,10.92074136]
[1769429385803,5.09751454,122.68,122.62,10.92074136]
[1769429385999,3.35913531,122.69,122.64,3.57334136]
[1769429386303,3.35913531,122.69,122.64,5.31172059]
[1769429387103,3.35913531,122.69,122.64,12.65792059]
[1769429387602,3.35913531,122.69,122.64,10.91954136]
[1769429388004,7.3427,122.7,122.65,3.57334136]
[1769429388503,10.7511023,122.7,122.65,3.57334136]
[1769429392007,10.7517023,122.69,122.63,10.8548588]
[1769429396609,3.4084023,122.68,122.63,12.59323803]
[1769429397811,3.4084023,122.68,122.63,10.8548588]
[1769429399407,3.4084023,122.67,122.61,10.8557588]
[1769429399808,3.4084023,122.67,122.61,12.59413803]
[1769429400008,3.4084023,122.67,122.62,3.5081588]
[1769429400214,3.4084023,122.66,122.61,7.3476]
[1769429400610,3.4084023,122.66,122.61,10.8557588]
[1769429402715,3.4084023,122.66,122.61,12.59413803]
[1769429408018,3.4084023,122.66,122.61,10.8557588]
[1769429411828,5.14678153,122.66,122.61,3.5081588]
[1769429413316,3.4084023,122.66,122.61,3.5081588]
[1769429413921,3.4084023,122.66,122.61,10.8561588]
[1769429416324,3.4084023,122.66,122.61,12.59453803]
[1769429418127,3.4084023,122.66,122.61,10.8561588]
[1769429420431,3.4084023,122.66,122.62,3.57254483]
[1769429429847,10.7534023,122.66,122.62,3.57254483]
[1769429430743,10.7534023,122.66,122.61,7.348]
[1769429430949,7.3457,122.65,122.6,12.6604293]
[1769429432143,10.87702579,122.65,122.6,12.6604293]
[1769429432550,10.87702579,122.65,122.6,5.3118293]
[1769429432947,10.87702579,122.65,122.6,3.57254483]
[1769429433851,10.87702579,122.65,122.6,10.92114483]
[1769429433852,3.53132579,122.65,122.6,10.92114483]
[1769429437451,3.53132579,122.65,122.6,12.6604293]
[1769429438148,3.53132579,122.63,122.58,12.6610293]
[1769429439852,3.53132579,122.63,122.59,3.57254483]
[1769429442958,3.53132579,122.63,122.59,5.3118293]
[1769429444657,7.3462,122.64,122.59,5.3118293]
[1769429445261,10.87752579,122.64,122.59,5.3118293]
[1769429446461,10.87682579,122.66,122.6,3.57254483]
[1769429446661,10.87682579,122.66,122.6,5.3118293]
[1769429448066,3.53132579,122.66,122.62,1.73928447]
[1769429448757,3.53132579,122.66,122.61,12.6596293]
[1769429451465,3.53132579,122.66,122.62,1.73928447]
[1769429453066,3.36453966,122.68,122.63,5.07025929]
[1769429454766,3.36453966,122.68,122.63,3.33097482]
[1769429454965,3.36453966,122.68,122.63,10.67757482]
[1769429456069,3.36453966,122.68,122.64,3.33097482]
[1769429457076,10.70803966,122.69,122.64,3.33097482]
[1769429457769,3.36453966,122.66,122.6,5.07025929]
[1769429457972,3.36453966,122.66,122.6,3.33097482]
[1769429457973,3.36453966,122.65,122.6,3.33097482]
[1769429458681,3.36453966,122.64,122.59,7.3487]
[1769429460275,3.36453966,122.64,122.58,3.33097482]
[1769429460864,5.10382413,122.64,122.58,3.33097482]
[1769429461776,12.45022413,122.64,122.58,3.33097482]
[1769429462377,10.71093966,122.64,122.58,3.33097482]
[1769429463073,3.36453966,122.64,122.59,3.33097482]
[1769429463978,3.36453966,122.64,122.59,10.68007482]
[1769429470076,1.73928447,122.66,122.61,3.33097482]
[1769429470270,330.68382413,122.67,122.61,3.33097482]
[1769429470874,7.345,122.66,122.61,3.33097482]
[1769429474083,10.70953966,122.66,122.61,3.33097482]
[1769429479386,12.44882413,122.66,122.61,3.33097482]
[1769429480997,3.51487502,122.65,122.61,3.33097482]
[1769429486506,9.08457008,122.66,122.61,3.33097482]
[1769429486710,10.85937502,122.67,122.62,3.48084117]
[1769429487905,3.51487502,122.71,122.63,3.48084117]
[1769429488102,3.51487502,122.69,122.63,3.48084117]
[1769429488898,3.51487502,122.68,122.63,10.82744117]
[1769429490311,3.51487502,122.68,122.63,12.56701125]
[1769429490612,3.51487502,122.68,122.63,10.82744117]
[1769429491308,338.1570451,122.7,122.65,3.48084117]
[1769429494107,336.41747502,122.7,122.65,3.48084117]
[1769429494302,338.1570451,122.7,122.65,3.48084117]
[1769429498412,3.51487502,122.69,122.64,7.346]
[1769429498709,325.56,122.7,122.65,10.82644117]
[1769429498910,3.51487502,122.7,122.65,3.48084117]
[1769429499112,3.51487502,122.7,122.65,5.22041125]
[1769429499711,3.51487502,122.7,122.65,3.48084117]
[1769429499908,3.51487502,122.7,122.66,7.3448]
[1769429501807,3.51487502,122.7,122.66,10.82564117]
[1769429508122,329.01487502,122.72,122.67,10.82524117]
[1769429508317,325.5,122.72,122.68,3.48084117]
[1769429508510,7.3409,122.73,122.68,3.48084117]
[1769429508818,7.3409,122.73,122.68,10.82464117]
[1769429510217,336.31517502,122.74,122.68,10.82464117]
[1769429510721,338.0547451,122.74,122.68,10.82464117]
[1769429511416,336.31517502,122.74,122.68,10.82464117]
[1769429512022,328.97487502,122.74,122.69,10.65758657]
[1769429513324,330.7144451,122.74,122.69,10.65758657]
[1769429514723,328.97487502,122.74,122.69,10.65758657]
[1769429515225,330.7144451,122.74,122.69,10.65758657]
[1769429517025,3.55685357,122.73,122.69,10.65758657]
[1769429521323,327.19957008,122.74,122.69,10.65758657]
[1769429521520,3.55685357,122.75,122.7,10.65708657]
[1769429521720,3.55685357,122.75,122.71,3.31448657]
[1769429523014,12.63602365,122.75,122.71,3.31448657]
[1769429526928,10.89645357,122.75,122.71,3.31448657]
[1769429527226,12.63602365,122.75,122.71,3.31448657]
[1769429527727,3.55685357,122.75,122.71,3.31448657]
[1769429527929,5.29642365,122.75,122.7,7.3425]
[1769429528228,5.29642365,122.75,122.7,3.31448657]
[1769429532833,12.63602365,122.75,122.7,3.31448657]
[1769429533525,3.55685357,122.74,122.7,3.31448657]
[1769429535232,5.29642365,122.72,122.67,3.31448657]
[1769429536636,5.29642365,122.71,122.66,7.345]
[1769429537130,3.55685357,122.7,122.65,3.31448657]
[1769429537433,9.08167008,122.71,122.63,3.31448657]
[1769429537434,5.29642365,122.69,122.63,3.31448657]
[1769429538228,3.55685357,122.69,122.63,3.31448657]
[1769429538932,3.55685357,122.69,122.64,3.55755908]
[1769429539939,3.55685357,122.69,122.65,7.3456]
[1769429540536,1.73957008,122.7,122.65,10.90315908]
[1769429541739,5.25957077,122.7,122.65,10.90315908]
[1769429543330,3.52000069,122.7,122.65,10.90315908]
[1769429546047,5.25811707,122.7,122.65,10.90315908]
[1769429546342,5.25811707,122.7,122.62,1.73811638]
[1769429546343,5.25811707,122.68,122.63,10.90405908]
[1769429546943,3.52000069,122.68,122.63,10.90405908]
[1769429547341,1.73811638,122.69,122.64,10.90375908]
[1769429547941,12.60081707,122.7,122.64,10.90375908]
[1769429550245,1.73811638,122.71,122.66,3.55755908]
[1769429550544,10.86190069,122.72,122.66,3.55755908]
[1769429550545,5.25811707,122.72,122.66,3.55755908]
[1769429550746,3.52000069,122.72,122.66,3.55755908]
[1769429551147,3.52000069,122.72,122.68,7.3438]
[1769429551942,192.33811707,122.74,122.68,10.90135908]
[1769429553550,5.25811707,122.73,122.68,10.90135908]
[1769429555446,3.52000069,122.72,122.67,7.3443]
[1769429555646,5.25811707,122.72,122.66,3.55755908]
[1769429556651,3.52000069,122.72,122.66,3.55755908]
[1769429557054,3.52000069,122.72,122.68,7.3438]
[1769429560753,5.25811707,122.72,122.68,7.3438]
[1769429564669,5.25811707,122.71,122.65,3.55755908]
[1769429564856,1.73811638,122.7,122.65,3.55755908]
[1769429565057,1.73811638,122.69,122.65,3.55755908]
[1769429570671,12.60081707,122.7,122.65,3.55755908]
[1769429575674,3.52000069,122.7,122.66,3.29953879]
[1769429576467,3.52000069,122.7,122.66,10.64453879]
[1769429576872,1.73811638,122.71,122.66,10.64453879]
[1769429578774,12.36224405,122.72,122.66,10.64453879]
[1769429579968,5.02034405,122.72,122.67,10.64353879]
[1769429582874,1.73811638,122.73,122.68,10.64323879]
[1769429583075,197.70292767,122.74,122.68,10.64323879]
[1769429583274,199.44104405,122.74,122.68,10.64323879]
[1769429584773,3.28222767,122.73,122.68,10.64323879]
[1769429586878,5.02034405,122.73,122.68,10.64323879]
[1769429589585,3.28222767,122.73,122.68,10.64323879]
[1769429598692,5.02034405,122.73,122.68,10.64323879]
[1769429605601,5.01982783,122.73,122.68,10.64323879]
[1769429607203,3.28222767,122.73,122.68,10.64323879]
[1769429607903,3.28222767,122.73,122.69,3.4648919]
[1769429608602,7.3407,122.74,122.69,3.4648919]
[1769429609404,10.86785331,122.74,122.69,3.4648919]
[1769429612104,7.3397,122.75,122.7,3.4648919]
[1769429612309,10.86685331,122.75,122.7,3.4648919]
[1769429617096,332.7393,122.76,122.71,3.4648919]
[1769429617910,336.26645331,122.76,122.71,3.4648919]
[1769429619307,328.92715331,122.76,122.71,10.8066919]
[1769429623820,3.52715331,122.76,122.71,10.8066919]
[1769429624215,5.26475347,122.76,122.71,10.8066919]
[1769429625018,328.84715331,122.77,122.72,10.8059919]
[1769429625325,330.58475347,122.77,122.72,10.8059919]
[1769429626227,328.84715331,122.77,122.72,10.8059919]
[1769429626523,330.58475347,122.77,122.72,10.8059919]
[1769429627120,328.84715331,122.77,122.72,7.3411]
[1769429627326,328.84715331,122.77,122.73,10.8056919]
[1769429630826,325.32,122.77,122.73,10.8056919]
[1769429632728,325.32,122.77,122.74,7.3402]
[1769429632920,3.32073769,122.78,122.74,7.3402]
[1769429633315,3.32073769,122.8,122.75,7.3396]
[1769429633622,3.32073769,122.8,122.75,10.66382801]
[1769429634129,3.32073769,122.8,122.76,7.339]
[1769429634723,3.32073769,122.8,122.76,10.66322801]
[1769429634924,5.05833785,122.82,122.77,7.3382]
[1769429635127,3.32073769,122.82,122.77,10.66242801]
[1769429635324,5.05833785,122.82,122.77,10.66242801]
[1769429635522,3.32073769,122.82,122.78,7.3378]
[1769429637427,332.5943,122.84,122.78,10.66202801]
[1769429637627,3.32073769,122.83,122.78,10.66202801]
[1769429638024,5.05833785,122.83,122.78,10.66202801]
[1769429640224,3.32073769,122.83,122.78,10.66202801]
[1769429640425,5.05833785,122.83,122.78,10.66202801]
[1769429643129,3.32073769,122.83,122.78,10.66202801]
[1769429643337,3.32073769,122.83,122.79,3.32422801]
[1769429648743,10.65563769,122.83,122.79,3.32422801]
[1769429649235,10.65563769,122.83,122.78,3.32422801]
[1769429650643,12.39323785,122.83,122.78,3.32422801]
[1769429650839,3.32073769,122.83,122.79,3.32422801]
[1769429651144,328.58073769,122.84,122.79,3.32422801]